[Event "Early-Titled-Tuesday-Blitz-January-23-2024"]
[Site "Chess.com"]
[Date "2024.01.23"]
[Round "1"]
[White "Yeritsyaan"]
[Black "eightbyeightchess"]
[Result "0-1"]
[WhiteElo "2639"]
[BlackElo "2362"]
[TimeControl "180+1"]
[EndTime "8:07:37 PST"]
[Termination "eightbyeightchess won by resignation"]

1. c4 {[%clk 0:03:00.9]} 1... e6 {[%clk 0:03:00]} 2. Nf3 {[%clk 0:02:57.8]} 2...
d5 {[%clk 0:02:59.4]} 3. e3 {[%clk 0:02:54.6]} 3... Nf6 {[%clk 0:02:58.3]} 4.
Be2 {[%clk 0:02:42.9]} 4... b6 {[%clk 0:02:56.9]} 5. O-O {[%clk 0:02:42.8]} 5...
Bb7 {[%clk 0:02:56.8]} 6. Nc3 {[%clk 0:02:41.6]} 6... Bd6 {[%clk 0:02:48.6]} 7.
b3 {[%clk 0:02:40.3]} 7... O-O {[%clk 0:02:47.2]} 8. Bb2 {[%clk 0:02:39.3]} 8...
c5 {[%clk 0:02:47.1]} 9. Rc1 {[%clk 0:02:32.9]} 9... Nc6 {[%clk 0:02:45.2]} 10.
cxd5 {[%clk 0:02:28.8]} 10... exd5 {[%clk 0:02:41]} 11. d4 {[%clk 0:02:29.1]}
11... Re8 {[%clk 0:02:37.4]} 12. dxc5 {[%clk 0:02:24.3]} 12... bxc5 {[%clk
0:02:35.7]} 13. Na4 {[%clk 0:02:24.2]} 13... Ne4 {[%clk 0:02:30.5]} 14. a3
{[%clk 0:02:16.1]} 14... a6 {[%clk 0:02:03]} 15. Qc2 {[%clk 0:02:13.9]} 15... d4
{[%clk 0:01:41.9]} 16. Bd3 {[%clk 0:01:52.1]} 16... Ne5 {[%clk 0:01:04.6]} 17.
Bxe4 {[%clk 0:01:40.4]} 17... Nxf3+ {[%clk 0:00:28.6]} 18. Bxf3 {[%clk 0:01:40]}
18... Bxf3 {[%clk 0:00:23.7]} 19. gxf3 {[%clk 0:01:40.4]} 19... Qh4 {[%clk
0:00:15.8]} 20. Rfe1 {[%clk 0:00:59.7]} 20... Qxh2+ {[%clk 0:00:16.1]} 21. Kf1
{[%clk 0:00:59.8]} 21... Qh3+ {[%clk 0:00:13.4]} 22. Ke2 {[%clk 0:00:59.1]}
22... dxe3 {[%clk 0:00:13.5]} 23. fxe3 {[%clk 0:00:19.7]} 23... Rad8 {[%clk
0:00:12.8]} 24. Rf1 {[%clk 0:00:12.9]} 24... Bg3 {[%clk 0:00:13.4]} 25. Bd4
{[%clk 0:00:06]} 25... cxd4 {[%clk 0:00:10.9]} 26. e4 {[%clk 0:00:06.7]} 26...
d3+ {[%clk 0:00:10.2]} 27. Qxd3 {[%clk 0:00:07.4]} 27... Rxd3 {[%clk 0:00:10]}
28. Kxd3 {[%clk 0:00:08.3]} 28... Rd8+ {[%clk 0:00:08.7]} 29. Kc2 {[%clk
0:00:07.4]} 29... Qg2+ {[%clk 0:00:07.9]} 30. Kb1 {[%clk 0:00:07.3]} 30... Be5
{[%clk 0:00:08.3]} 31. Rc2 {[%clk 0:00:03]} 31... Qxf1+ {[%clk 0:00:07.8]} 32.
Rc1 {[%clk 0:00:03.6]} 32... Qd3+ {[%clk 0:00:07.4]} 33. Ka2 {[%clk 0:00:04.4]}
33... Qd2+ {[%clk 0:00:06.5]} 34. Kb1 {[%clk 0:00:05.2]} 34... h5 {[%clk
0:00:06.4]} 35. Rc2 {[%clk 0:00:03.1]} 35... Qd1+ {[%clk 0:00:06.4]} 36. Rc1
{[%clk 0:00:02.6]} 36... Qxb3+ {[%clk 0:00:06.3]} 0-1

[Event "Early-Titled-Tuesday-Blitz-January-23-2024"]
[Site "Chess.com"]
[Date "2024.01.23"]
[Round "1"]
[White "Ezov"]
[Black "Let_it_be_1"]
[Result "0-1"]
[WhiteElo "2215"]
[BlackElo "2590"]
[TimeControl "180+1"]
[EndTime "8:07:37 PST"]
[Termination "Let_it_be_1 won by checkmate"]

1. d4 {[%clk 0:02:56.7]} 1... d5 {[%clk 0:02:58.4]} 2. Nc3 {[%clk 0:02:55.5]}
2... e6 {[%clk 0:02:58.6]} 3. Bf4 {[%clk 0:02:54.3]} 3... Bd6 {[%clk 0:02:58.3]}
4. Qd2 {[%clk 0:02:52.8]} 4... Nf6 {[%clk 0:02:56.7]} 5. O-O-O {[%clk 0:02:51]}
5... b6 {[%clk 0:02:50.8]} 6. f3 {[%clk 0:02:49.1]} 6... Bb7 {[%clk 0:02:39.6]}
7. g4 {[%clk 0:02:47.2]} 7... h6 {[%clk 0:02:37.1]} 8. h4 {[%clk 0:02:44.4]}
8... Nbd7 {[%clk 0:02:34.7]} 9. Bxd6 {[%clk 0:02:40.9]} 9... cxd6 {[%clk
0:02:34.4]} 10. Nb5 {[%clk 0:02:38.1]} 10... Qb8 {[%clk 0:02:29.8]} 11. Qb4
{[%clk 0:02:32.7]} 11... Ke7 {[%clk 0:02:29.5]} 12. Nh3 {[%clk 0:02:16.8]} 12...
a6 {[%clk 0:02:27.2]} 13. Na3 {[%clk 0:02:12.3]} 13... b5 {[%clk 0:02:10.2]} 14.
e3 {[%clk 0:02:04.3]} 14... Bc6 {[%clk 0:02:05.1]} 15. Qd2 {[%clk 0:01:51.7]}
15... b4 {[%clk 0:02:02.4]} 16. Nb1 {[%clk 0:01:49.5]} 16... a5 {[%clk
0:01:57.7]} 17. g5 {[%clk 0:01:47.4]} 17... hxg5 {[%clk 0:01:56.7]} 18. hxg5
{[%clk 0:01:47]} 18... Nh5 {[%clk 0:01:55.2]} 19. Bd3 {[%clk 0:01:39]} 19... a4
{[%clk 0:01:51.2]} 20. e4 {[%clk 0:01:36]} 20... b3 {[%clk 0:01:41.8]} 21. a3
{[%clk 0:01:33]} 21... dxe4 {[%clk 0:01:33.2]} 22. fxe4 {[%clk 0:01:26.7]} 22...
Ng3 {[%clk 0:01:32.2]} 23. Rh2 {[%clk 0:01:11.6]} 23... Nxe4 {[%clk 0:01:30.9]}
24. Qf4 {[%clk 0:01:00.9]} 24... bxc2 {[%clk 0:01:26]} 25. Bxc2 {[%clk
0:00:58.7]} 25... Qc7 {[%clk 0:01:14.6]} 26. Bxe4 {[%clk 0:00:45.6]} 26... Bxe4+
{[%clk 0:01:13.6]} 27. Nc3 {[%clk 0:00:45.3]} 27... Bf5 {[%clk 0:01:11.1]} 28.
Nf2 {[%clk 0:00:42.1]} 28... Qc4 {[%clk 0:00:58.2]} 29. Rxh8 {[%clk 0:00:35.7]}
29... Rxh8 {[%clk 0:00:57.3]} 30. Ne4 {[%clk 0:00:34.3]} 30... Qc6 {[%clk
0:00:55.5]} 31. d5 {[%clk 0:00:31.8]} 31... Qb6 {[%clk 0:00:43.6]} 32. dxe6
{[%clk 0:00:19.4]} 32... fxe6 {[%clk 0:00:40.5]} 33. Rxd6 {[%clk 0:00:18.4]}
33... Rh1+ {[%clk 0:00:38.4]} 34. Rd1 {[%clk 0:00:14.1]} 34... Rxd1+ {[%clk
0:00:36.6]} 35. Nxd1 {[%clk 0:00:14.1]} 35... Qd4 {[%clk 0:00:35.4]} 36. Ndc3
{[%clk 0:00:10.7]} 36... Ne5 {[%clk 0:00:33.9]} 37. Qh4 {[%clk 0:00:05.3]} 37...
Nd3+ {[%clk 0:00:28.1]} 38. Kb1 {[%clk 0:00:04.9]} 38... Nc5 {[%clk 0:00:25.8]}
39. Qh5 {[%clk 0:00:02.4]} 39... Nxe4 {[%clk 0:00:24.4]} 40. Nxe4 {[%clk
0:00:02.7]} 40... Qxe4+ {[%clk 0:00:23.3]} 41. Ka2 {[%clk 0:00:02.8]} 41... Qb1#
{[%clk 0:00:23.4]} 0-1

[Event "Early-Titled-Tuesday-Blitz-January-23-2024"]
[Site "Chess.com"]
[Date "2024.01.23"]
[Round "1"]
[White "Schachmalanders"]
[Black "Kiborg95"]
[Result "0-1"]
[WhiteElo "2476"]
[BlackElo "2861"]
[TimeControl "180+1"]
[EndTime "8:07:39 PST"]
[Termination "Kiborg95 won by resignation"]

1. e4 {[%clk 0:03:00.9]} 1... d6 {[%clk 0:02:58.1]} 2. d4 {[%clk 0:02:59.7]}
2... Nf6 {[%clk 0:02:57.4]} 3. Nc3 {[%clk 0:02:59.8]} 3... Nbd7 {[%clk
0:02:57.1]} 4. f4 {[%clk 0:02:58.4]} 4... e5 {[%clk 0:02:57.6]} 5. Nf3 {[%clk
0:02:57.9]} 5... exd4 {[%clk 0:02:58.3]} 6. Qxd4 {[%clk 0:02:56.7]} 6... c6
{[%clk 0:02:58.9]} 7. g3 {[%clk 0:02:51.4]} 7... d5 {[%clk 0:02:52]} 8. e5
{[%clk 0:02:47.3]} 8... Bc5 {[%clk 0:02:52.1]} 9. Qd2 {[%clk 0:02:31.5]} 9...
Ng4 {[%clk 0:02:42.7]} 10. Bg2 {[%clk 0:02:24.1]} 10... O-O {[%clk 0:02:11]} 11.
h3 {[%clk 0:02:21.7]} 11... Ne3 {[%clk 0:02:08.3]} 12. Qe2 {[%clk 0:02:04.5]}
12... Nxg2+ {[%clk 0:02:08.1]} 13. Qxg2 {[%clk 0:02:05.4]} 13... Nb6 {[%clk
0:02:05.8]} 14. Bd2 {[%clk 0:01:59.3]} 14... Nc4 {[%clk 0:02:05.1]} 15. O-O-O
{[%clk 0:01:59]} 15... f6 {[%clk 0:01:59.3]} 16. Rhe1 {[%clk 0:01:49.6]} 16...
Qb6 {[%clk 0:01:54.3]} 17. b3 {[%clk 0:01:31.3]} 17... Nxd2 {[%clk 0:01:25.4]}
18. Qxd2 {[%clk 0:01:26.6]} 18... Bxh3 {[%clk 0:01:25.5]} 19. exf6 {[%clk
0:01:21]} 19... Rxf6 {[%clk 0:01:23.5]} 20. Kb1 {[%clk 0:01:12.4]} 20... Bg4
{[%clk 0:01:23]} 21. Qd3 {[%clk 0:01:07.7]} 21... Bb4 {[%clk 0:01:20.9]} 22. Na4
{[%clk 0:00:51.6]} 22... Qb5 {[%clk 0:01:15.8]} 23. c3 {[%clk 0:00:48]} 23...
Qxd3+ {[%clk 0:01:04.5]} 24. Rxd3 {[%clk 0:00:48.9]} 24... Bf5 {[%clk
0:01:04.4]} 25. cxb4 {[%clk 0:00:44.6]} 25... Bxd3+ {[%clk 0:01:03.6]} 26. Kb2
{[%clk 0:00:45.5]} 26... Be4 {[%clk 0:00:53.1]} 27. Ng5 {[%clk 0:00:43.9]} 27...
Re8 {[%clk 0:00:51.8]} 28. Nc5 {[%clk 0:00:44.2]} 28... b6 {[%clk 0:00:47]} 29.
Nd7 {[%clk 0:00:43.2]} 29... Rd6 {[%clk 0:00:43.7]} 30. Ne5 {[%clk 0:00:43.4]}
30... h6 {[%clk 0:00:42.4]} 31. Nxe4 {[%clk 0:00:42.8]} 31... dxe4 {[%clk
0:00:43.3]} 32. Rxe4 {[%clk 0:00:43.4]} 32... Rd2+ {[%clk 0:00:43.2]} 33. Ka3
{[%clk 0:00:42.4]} 33... Rg2 {[%clk 0:00:42.4]} 34. Re3 {[%clk 0:00:40.5]} 34...
h5 {[%clk 0:00:41.4]} 35. Rd3 {[%clk 0:00:40.3]} 35... Rc2 {[%clk 0:00:36.9]}
36. Rd7 {[%clk 0:00:36.9]} 36... a5 {[%clk 0:00:37.1]} 37. bxa5 {[%clk
0:00:35.9]} 37... bxa5 {[%clk 0:00:38]} 38. Rc7 {[%clk 0:00:28.8]} 38... Rd8
{[%clk 0:00:38.5]} 39. Nxc6 {[%clk 0:00:28.5]} 39... Rdd2 {[%clk 0:00:38.1]} 40.
Ne7+ {[%clk 0:00:27.3]} 40... Kf7 {[%clk 0:00:38.6]} 41. Rxc2 {[%clk 0:00:28.2]}
41... Rxc2 {[%clk 0:00:38.7]} 42. Nd5 {[%clk 0:00:24.1]} 42... Rg2 {[%clk
0:00:36.1]} 43. Ka4 {[%clk 0:00:21.9]} 43... Rxa2+ {[%clk 0:00:36.1]} 44. Kb5
{[%clk 0:00:22.4]} 44... Ra3 {[%clk 0:00:32.4]} 45. Kc4 {[%clk 0:00:21.8]} 45...
a4 {[%clk 0:00:33.1]} 46. b4 {[%clk 0:00:22.2]} 46... Rxg3 {[%clk 0:00:33.5]}
47. b5 {[%clk 0:00:22.4]} 47... a3 {[%clk 0:00:23.6]} 48. Nb4 {[%clk 0:00:22.2]}
48... Rg6 {[%clk 0:00:21.8]} 49. Kc5 {[%clk 0:00:21.8]} 49... h4 {[%clk
0:00:21.9]} 50. f5 {[%clk 0:00:20.9]} 50... Rf6 {[%clk 0:00:21.9]} 51. b6 {[%clk
0:00:21.1]} 51... Rxb6 {[%clk 0:00:21.8]} 52. Kxb6 {[%clk 0:00:20.9]} 52... h3
{[%clk 0:00:22.6]} 53. Ka5 {[%clk 0:00:18.2]} 53... h2 {[%clk 0:00:22.9]} 54.
Ka4 {[%clk 0:00:19.1]} 54... h1=Q {[%clk 0:00:23.4]} 55. Kxa3 {[%clk 0:00:20]}
55... Qf3+ {[%clk 0:00:23.6]} 56. Ka4 {[%clk 0:00:20.5]} 56... Qxf5 {[%clk
0:00:24.2]} 57. Kb3 {[%clk 0:00:20.9]} 57... Qe4 {[%clk 0:00:24.2]} 0-1

[Event "Early-Titled-Tuesday-Blitz-January-23-2024"]
[Site "Chess.com"]
[Date "2024.01.23"]
[Round "1"]
[White "viktorgen2021"]
[Black "dropstoneDP"]
[Result "0-1"]
[WhiteElo "2527"]
[BlackElo "3057"]
[TimeControl "180+1"]
[EndTime "8:07:40 PST"]
[Termination "dropstoneDP won by resignation"]

1. d4 {[%clk 0:03:00.9]} 1... d5 {[%clk 0:02:58.9]} 2. c4 {[%clk 0:03:00.4]}
2... dxc4 {[%clk 0:02:59.8]} 3. Nf3 {[%clk 0:02:59.1]} 3... Nf6 {[%clk
0:02:56.9]} 4. e3 {[%clk 0:02:59.2]} 4... e6 {[%clk 0:02:54.4]} 5. Bxc4 {[%clk
0:02:57.5]} 5... c5 {[%clk 0:02:54.4]} 6. O-O {[%clk 0:02:55]} 6... Nc6 {[%clk
0:02:54.6]} 7. Qe2 {[%clk 0:02:48.2]} 7... a6 {[%clk 0:02:48.8]} 8. Rd1 {[%clk
0:02:47.3]} 8... b5 {[%clk 0:02:48.5]} 9. dxc5 {[%clk 0:02:30.9]} 9... Qc7
{[%clk 0:02:47.8]} 10. Bb3 {[%clk 0:02:30.6]} 10... Bxc5 {[%clk 0:02:46.5]} 11.
Nc3 {[%clk 0:02:30.4]} 11... O-O {[%clk 0:02:46]} 12. h3 {[%clk 0:02:21.8]}
12... Bb7 {[%clk 0:02:43.3]} 13. Bd2 {[%clk 0:02:19.4]} 13... Ne5 {[%clk
0:02:38.7]} 14. e4 {[%clk 0:01:57.3]} 14... Nxf3+ {[%clk 0:02:23.2]} 15. Qxf3
{[%clk 0:01:57.5]} 15... b4 {[%clk 0:02:21.8]} 16. Na4 {[%clk 0:01:21]} 16...
Bxe4 {[%clk 0:02:21.2]} 17. Qe2 {[%clk 0:01:21.2]} 17... Qg3 {[%clk 0:02:18.3]}
18. Qf1 {[%clk 0:01:16.3]} 18... Ba7 {[%clk 0:02:13.6]} 19. Re1 {[%clk
0:01:13.4]} 19... a5 {[%clk 0:02:01.5]} 20. Be3 {[%clk 0:01:13.5]} 20... Bxe3
{[%clk 0:02:01.1]} 21. Rxe3 {[%clk 0:01:14.1]} 21... Qg5 {[%clk 0:01:53.2]} 22.
Rae1 {[%clk 0:01:10.4]} 22... Bc6 {[%clk 0:01:46.6]} 23. Rg3 {[%clk 0:01:03.2]}
23... Qb5 {[%clk 0:01:37.2]} 24. Qxb5 {[%clk 0:00:45.5]} 24... Bxb5 {[%clk
0:01:38.1]} 25. Re5 {[%clk 0:00:35.4]} 25... Rfb8 {[%clk 0:01:33.9]} 26. Nc5
{[%clk 0:00:29.3]} 26... a4 {[%clk 0:01:30.3]} 27. Bxe6 {[%clk 0:00:21.4]} 27...
fxe6 {[%clk 0:01:29.2]} 28. Nxe6 {[%clk 0:00:22.3]} 28... Ra7 {[%clk 0:01:27.9]}
29. Reg5 {[%clk 0:00:15.5]} 29... g6 {[%clk 0:01:20.5]} 30. Rf3 {[%clk 0:00:16]}
30... Rf7 {[%clk 0:01:05.3]} 31. Nd4 {[%clk 0:00:12.4]} 31... Bd7 {[%clk
0:01:03.6]} 32. Re5 {[%clk 0:00:11.6]} 32... Re8 {[%clk 0:00:53.7]} 33. Ra5
{[%clk 0:00:10.6]} 33... Ne4 {[%clk 0:00:52.2]} 34. g4 {[%clk 0:00:07.1]} 34...
Rxf3 {[%clk 0:00:45.5]} 35. Nxf3 {[%clk 0:00:08]} 35... Rc8 {[%clk 0:00:45.7]}
36. Nd4 {[%clk 0:00:06.4]} 36... Rc4 {[%clk 0:00:41.2]} 37. Rd5 {[%clk
0:00:05.7]} 37... Bc6 {[%clk 0:00:29.3]} 38. Rd8+ {[%clk 0:00:05.6]} 38... Kf7
{[%clk 0:00:29.2]} 39. Nf3 {[%clk 0:00:05.6]} 39... Ke7 {[%clk 0:00:28]} 40. Rd1
{[%clk 0:00:04.6]} 40... Ba8 {[%clk 0:00:21.4]} 41. Ne5 {[%clk 0:00:04.3]} 41...
Rc2 {[%clk 0:00:21.6]} 42. Rd7+ {[%clk 0:00:04.4]} 42... Ke6 {[%clk 0:00:21.6]}
43. Ra7 {[%clk 0:00:03.2]} 43... Kxe5 {[%clk 0:00:21.9]} 44. Rxa8 {[%clk
0:00:03.8]} 44... Rxb2 {[%clk 0:00:22]} 45. Rxa4 {[%clk 0:00:04.5]} 45... Nc3
{[%clk 0:00:22.4]} 46. Ra5+ {[%clk 0:00:04.4]} 46... Kd4 {[%clk 0:00:23]} 47.
Kf1 {[%clk 0:00:04.5]} 47... Rxa2 {[%clk 0:00:23.1]} 0-1

[Event "Early-Titled-Tuesday-Blitz-January-23-2024"]
[Site "Chess.com"]
[Date "2024.01.23"]
[Round "1"]
[White "Zheenbekov86"]
[Black "vugarrasulov"]
[Result "0-1"]
[WhiteElo "2507"]
[BlackElo "2941"]
[TimeControl "180+1"]
[EndTime "8:07:40 PST"]
[Termination "vugarrasulov won on time"]

1. d4 {[%clk 0:03:00.7]} 1... d6 {[%clk 0:03:00.9]} 2. Nf3 {[%clk 0:02:59.9]}
2... Nf6 {[%clk 0:03:00.2]} 3. c4 {[%clk 0:02:59.7]} 3... g6 {[%clk 0:02:59.6]}
4. g3 {[%clk 0:02:59.7]} 4... Bg7 {[%clk 0:03:00.1]} 5. Bg2 {[%clk 0:03:00.1]}
5... O-O {[%clk 0:03:00.5]} 6. O-O {[%clk 0:03:00.3]} 6... Bf5 {[%clk
0:03:00.7]} 7. Nc3 {[%clk 0:02:59.9]} 7... Ne4 {[%clk 0:03:00.3]} 8. Qb3 {[%clk
0:02:56.2]} 8... Nxc3 {[%clk 0:02:58.5]} 9. bxc3 {[%clk 0:02:54.7]} 9... Be4
{[%clk 0:02:58.2]} 10. a4 {[%clk 0:02:43.2]} 10... Nd7 {[%clk 0:02:54.8]} 11. a5
{[%clk 0:02:40.4]} 11... c5 {[%clk 0:02:53.7]} 12. d5 {[%clk 0:02:32]} 12... Qc7
{[%clk 0:02:50.9]} 13. Bf4 {[%clk 0:02:22.5]} 13... Rab8 {[%clk 0:02:49.1]} 14.
h4 {[%clk 0:02:21.2]} 14... Nf6 {[%clk 0:02:45.8]} 15. Nd2 {[%clk 0:02:18.2]}
15... Bxg2 {[%clk 0:02:45.6]} 16. Kxg2 {[%clk 0:02:18.2]} 16... Rfe8 {[%clk
0:02:35.9]} 17. e4 {[%clk 0:02:06.1]} 17... e6 {[%clk 0:02:32.7]} 18. Rfe1
{[%clk 0:01:44.3]} 18... exd5 {[%clk 0:02:29.3]} 19. exd5 {[%clk 0:01:42.4]}
19... h5 {[%clk 0:02:24.7]} 20. Qb5 {[%clk 0:01:31.8]} 20... Re7 {[%clk
0:02:09]} 21. Bg5 {[%clk 0:01:25.5]} 21... a6 {[%clk 0:02:04.1]} 22. Qa4 {[%clk
0:01:24.6]} 22... Rbe8 {[%clk 0:01:57]} 23. Nf3 {[%clk 0:01:10.8]} 23... Rxe1
{[%clk 0:01:53.7]} 24. Rxe1 {[%clk 0:01:10.3]} 24... Rxe1 {[%clk 0:01:52.8]} 25.
Nxe1 {[%clk 0:01:10.4]} 25... Qe7 {[%clk 0:01:48.8]} 26. Nf3 {[%clk 0:00:56.4]}
26... Qe8 {[%clk 0:01:40.4]} 27. Qb3 {[%clk 0:00:54.4]} 27... Qd7 {[%clk
0:01:39]} 28. Nd2 {[%clk 0:00:40.1]} 28... Ng4 {[%clk 0:01:37.9]} 29. Bf4 {[%clk
0:00:37]} 29... f5 {[%clk 0:01:31.3]} 30. Nf3 {[%clk 0:00:31.9]} 30... Bf6
{[%clk 0:01:24.1]} 31. Bg5 {[%clk 0:00:24.7]} 31... Be7 {[%clk 0:01:18.4]} 32.
Qc2 {[%clk 0:00:22.2]} 32... Kf7 {[%clk 0:01:16.6]} 33. Qe2 {[%clk 0:00:19.5]}
33... Bf6 {[%clk 0:01:12.9]} 34. Bxf6 {[%clk 0:00:19]} 34... Kxf6 {[%clk
0:01:13.8]} 35. Ng5 {[%clk 0:00:19.1]} 35... Qe7 {[%clk 0:01:14.2]} 36. Qd2
{[%clk 0:00:15.5]} 36... Qe5 {[%clk 0:01:08.1]} 37. Ne6 {[%clk 0:00:12.4]} 37...
Qe4+ {[%clk 0:01:05.7]} 38. Kg1 {[%clk 0:00:12.5]} 38... f4 {[%clk 0:00:50.1]}
39. Qxf4+ {[%clk 0:00:11.4]} 39... Qxf4 {[%clk 0:00:50.5]} 40. Nxf4 {[%clk
0:00:11.6]} 40... Ne5 {[%clk 0:00:50.2]} 41. Ne6 {[%clk 0:00:10.9]} 41... Nxc4
{[%clk 0:00:50.6]} 42. Nd8 {[%clk 0:00:11.2]} 42... Nxa5 {[%clk 0:00:51.1]} 43.
Kg2 {[%clk 0:00:11.3]} 43... Ke7 {[%clk 0:00:50.1]} 44. Ne6 {[%clk 0:00:10.9]}
44... Nc4 {[%clk 0:00:49.9]} 45. Nf4 {[%clk 0:00:10.8]} 45... Kf6 {[%clk
0:00:50.2]} 46. Kf3 {[%clk 0:00:11.1]} 46... a5 {[%clk 0:00:50.7]} 47. Ke4
{[%clk 0:00:11.3]} 47... a4 {[%clk 0:00:51]} 48. Nd3 {[%clk 0:00:11.4]} 48... a3
{[%clk 0:00:49.9]} 49. Nc1 {[%clk 0:00:12]} 49... b5 {[%clk 0:00:50.4]} 50. f3
{[%clk 0:00:12.2]} 50... b4 {[%clk 0:00:48.8]} 51. cxb4 {[%clk 0:00:11.9]} 51...
cxb4 {[%clk 0:00:49.7]} 52. g4 {[%clk 0:00:12.3]} 52... Na5 {[%clk 0:00:48.9]}
53. g5+ {[%clk 0:00:11.8]} 53... Kf7 {[%clk 0:00:49.3]} 54. Kd4 {[%clk
0:00:12.1]} 54... b3 {[%clk 0:00:49.7]} 0-1

[Event "Early-Titled-Tuesday-Blitz-January-23-2024"]
[Site "Chess.com"]
[Date "2024.01.23"]
[Round "1"]
[White "Chesstrainer1"]
[Black "JimDiGrease"]
[Result "0-1"]
[WhiteElo "2513"]
[BlackElo "2974"]
[TimeControl "180+1"]
[EndTime "8:07:42 PST"]
[Termination "JimDiGrease won on time"]

1. e4 {[%clk 0:03:00.9]} 1... c5 {[%clk 0:03:00.4]} 2. Nf3 {[%clk 0:03:00.8]}
2... e6 {[%clk 0:03:01]} 3. d4 {[%clk 0:02:57.9]} 3... cxd4 {[%clk 0:03:01.9]}
4. Nxd4 {[%clk 0:02:58.4]} 4... Nf6 {[%clk 0:03:02.6]} 5. Nc3 {[%clk 0:02:57.5]}
5... Nc6 {[%clk 0:03:03.1]} 6. a3 {[%clk 0:02:47.2]} 6... d6 {[%clk 0:03:02.5]}
7. Be3 {[%clk 0:02:42.9]} 7... Be7 {[%clk 0:03:02.4]} 8. Be2 {[%clk 0:02:42.2]}
8... O-O {[%clk 0:02:58.9]} 9. f4 {[%clk 0:02:41]} 9... Qc7 {[%clk 0:02:56.3]}
10. g4 {[%clk 0:02:21.4]} 10... Nxd4 {[%clk 0:02:44.7]} 11. Qxd4 {[%clk
0:02:22.3]} 11... e5 {[%clk 0:02:45.4]} 12. Qd1 {[%clk 0:01:31.3]} 12... exf4
{[%clk 0:02:43.7]} 13. Bxf4 {[%clk 0:01:31.6]} 13... Be6 {[%clk 0:02:43.5]} 14.
g5 {[%clk 0:01:28.2]} 14... Nd7 {[%clk 0:02:43.6]} 15. Qd2 {[%clk 0:01:19.2]}
15... Ne5 {[%clk 0:02:38.1]} 16. O-O-O {[%clk 0:01:18.3]} 16... a6 {[%clk
0:02:07.4]} 17. Nd5 {[%clk 0:01:03.4]} 17... Bxd5 {[%clk 0:02:07.3]} 18. exd5
{[%clk 0:01:04.3]} 18... Rac8 {[%clk 0:01:52.8]} 19. Rhe1 {[%clk 0:00:55.6]}
19... Rfe8 {[%clk 0:01:47.4]} 20. Kb1 {[%clk 0:00:42.5]} 20... Bf8 {[%clk
0:01:42.4]} 21. c3 {[%clk 0:00:25.3]} 21... g6 {[%clk 0:01:42.1]} 22. h4 {[%clk
0:00:22.1]} 22... Bg7 {[%clk 0:01:42.1]} 23. h5 {[%clk 0:00:22.5]} 23... Qb6
{[%clk 0:01:26.4]} 24. h6 {[%clk 0:00:17]} 24... Bh8 {[%clk 0:01:26.1]} 25. Ka2
{[%clk 0:00:16.7]} 25... Qa5 {[%clk 0:01:17.8]} 26. Bxe5 {[%clk 0:00:07.9]}
26... Bxe5 {[%clk 0:00:59.3]} 27. Rf1 {[%clk 0:00:06.4]} 27... Qb6 {[%clk
0:00:55.3]} 28. Bd3 {[%clk 0:00:03.3]} 28... Re7 {[%clk 0:00:49.5]} 29. Rf3
{[%clk 0:00:02.9]} 29... Qc5 {[%clk 0:00:46.9]} 30. Bc2 {[%clk 0:00:03.2]} 30...
Qc4+ {[%clk 0:00:45.7]} 31. Bb3 {[%clk 0:00:03.1]} 31... Qg4 {[%clk 0:00:40.7]}
32. Rdf1 {[%clk 0:00:03.6]} 32... b5 {[%clk 0:00:37.9]} 33. Qf2 {[%clk
0:00:03.9]} 33... Rf8 {[%clk 0:00:34.3]} 34. Rg1 {[%clk 0:00:04.5]} 34... Qe4
{[%clk 0:00:20.7]} 35. Re1 {[%clk 0:00:04.4]} 35... Qg4 {[%clk 0:00:19.5]} 36.
Rg1 {[%clk 0:00:04.6]} 36... Qh5 {[%clk 0:00:19.8]} 37. Qg2 {[%clk 0:00:04.3]}
37... Qh2 {[%clk 0:00:14.9]} 38. Qxh2 {[%clk 0:00:03.8]} 38... Bxh2 {[%clk
0:00:15.8]} 39. Rg2 {[%clk 0:00:04.3]} 39... Be5 {[%clk 0:00:15.9]} 40. Re2
{[%clk 0:00:03.8]} 40... a5 {[%clk 0:00:14.2]} 41. a4 {[%clk 0:00:03.1]} 41...
Rb8 {[%clk 0:00:11.3]} 42. axb5 {[%clk 0:00:02.8]} 42... Rxb5 {[%clk 0:00:12.2]}
43. Bc4 {[%clk 0:00:02.1]} 43... Rc5 {[%clk 0:00:12.6]} 44. b3 {[%clk
0:00:01.2]} 44... a4 {[%clk 0:00:13.2]} 0-1

[Event "Early-Titled-Tuesday-Blitz-January-23-2024"]
[Site "Chess.com"]
[Date "2024.01.23"]
[Round "1"]
[White "ozates"]
[Black "itsdsyr"]
[Result "1-0"]
[WhiteElo "2600"]
[BlackElo "2239"]
[TimeControl "180+1"]
[EndTime "8:07:42 PST"]
[Termination "ozates won on time"]

1. e4 {[%clk 0:03:00.9]} 1... e5 {[%clk 0:02:57.5]} 2. Nf3 {[%clk 0:03:01.2]}
2... Nc6 {[%clk 0:02:56.4]} 3. Bc4 {[%clk 0:03:00.8]} 3... Bc5 {[%clk
0:02:54.1]} 4. c3 {[%clk 0:02:59.6]} 4... Nf6 {[%clk 0:02:52]} 5. d3 {[%clk
0:02:58.7]} 5... O-O {[%clk 0:02:47.5]} 6. Bg5 {[%clk 0:02:57.7]} 6... a6 {[%clk
0:02:37]} 7. Nbd2 {[%clk 0:02:49.5]} 7... h6 {[%clk 0:02:30.9]} 8. Bh4 {[%clk
0:02:47.8]} 8... Be7 {[%clk 0:02:29.1]} 9. O-O {[%clk 0:02:42.8]} 9... d6 {[%clk
0:02:25.4]} 10. Re1 {[%clk 0:02:37.5]} 10... Na5 {[%clk 0:02:22.5]} 11. d4
{[%clk 0:02:37.9]} 11... Bg4 {[%clk 0:02:08.6]} 12. h3 {[%clk 0:02:34.2]} 12...
Bxf3 {[%clk 0:02:01.3]} 13. Qxf3 {[%clk 0:02:34.6]} 13... Nxc4 {[%clk
0:01:59.2]} 14. Nxc4 {[%clk 0:02:34.4]} 14... Nd7 {[%clk 0:01:59]} 15. Bxe7
{[%clk 0:02:31.6]} 15... Qxe7 {[%clk 0:01:59.9]} 16. Ne3 {[%clk 0:02:32.2]}
16... c6 {[%clk 0:01:49.9]} 17. Rad1 {[%clk 0:02:31.1]} 17... g6 {[%clk
0:01:45.5]} 18. Qg3 {[%clk 0:02:17.1]} 18... Kh7 {[%clk 0:01:42.9]} 19. f4
{[%clk 0:02:08.8]} 19... exd4 {[%clk 0:01:36]} 20. cxd4 {[%clk 0:02:08.6]} 20...
Rae8 {[%clk 0:01:24.3]} 21. e5 {[%clk 0:02:03]} 21... dxe5 {[%clk 0:01:20]} 22.
dxe5 {[%clk 0:02:00.3]} 22... Nc5 {[%clk 0:01:19.7]} 23. Nc4 {[%clk 0:01:58]}
23... Rd8 {[%clk 0:01:09.9]} 24. Nd6 {[%clk 0:01:56.2]} 24... Qe6 {[%clk
0:01:00.4]} 25. h4 {[%clk 0:01:55.5]} 25... Qxa2 {[%clk 0:00:29.6]} 26. h5
{[%clk 0:01:55.6]} 26... Rg8 {[%clk 0:00:18.7]} 27. hxg6+ {[%clk 0:01:48.2]}
27... Rxg6 {[%clk 0:00:19.6]} 28. Qf2 {[%clk 0:01:44.7]} 28... Rdg8 {[%clk
0:00:15.1]} 29. Qxc5 {[%clk 0:00:37.7]} 29... Rxg2+ {[%clk 0:00:14.4]} 30. Kf1
{[%clk 0:00:38.3]} 30... Qxb2 {[%clk 0:00:11.4]} 31. Nxf7 {[%clk 0:00:28.5]}
31... Rg1+ {[%clk 0:00:04.9]} 32. Qxg1 {[%clk 0:00:27.5]} 32... Rxg1+ {[%clk
0:00:02.6]} 33. Kxg1 {[%clk 0:00:27.8]} 33... Qb6+ {[%clk 0:00:00.8]} 34. Kg2
{[%clk 0:00:22.7]} 34... Qb5 {[%clk 0:00:01.6]} 35. Rd7 {[%clk 0:00:20.6]} 35...
Qb2+ {[%clk 0:00:02]} 36. Kf3 {[%clk 0:00:20.8]} 36... Kg6 {[%clk 0:00:02.1]}
37. e6 {[%clk 0:00:18.7]} 37... Kf5 {[%clk 0:00:02.1]} 38. Re5+ {[%clk
0:00:17.5]} 38... Kf6 {[%clk 0:00:01.8]} 39. e7 {[%clk 0:00:17.9]} 39... Qc3+
{[%clk 0:00:02.3]} 40. Re3 {[%clk 0:00:18.5]} 1-0